[Event "Titled Tuesday Blitz June 20 Early 2023"]
[White "Koshulyan, Egor A."]
[Black "Demidov, Mikhail"]
[WhiteFideId "24237000"]
[BlackFideId "4197143"]
[WhiteElo "2216"]
[BlackElo "2500"]
[Result "1-0"]
[Round "3"]
[TimeControl "180+2"]
[Date "2023.06.20"]
[WhiteClock "0:00:13"]
[BlackClock "0:00:12"]
[Board "32"]

1. e4 {[%clk 0:03:00]}  Nf6 {[%clk 0:02:51]} 2. e5 {[%clk 0:03:00]}  Nd5 {[%clk 0:02:48]} 3. c4 {[%clk 0:03:00]}  Nb6 {[%clk 0:02:48]} 4. c5 {[%clk 0:03:00]}  Nd5 {[%clk 0:02:48]} 5. Bc4 {[%clk 0:03:01]}  c6 {[%clk 0:02:48]} 6. d4 {[%clk 0:03:01]}  b6 {[%clk 0:02:45]} 7. cxb6 {[%clk 0:02:30]}  axb6 {[%clk 0:02:44]} 8. Nf3 {[%clk 0:02:31]}  Ba6 {[%clk 0:02:43]} 9. Bxa6 {[%clk 0:02:30]}  Nxa6 {[%clk 0:02:43]} 10. O-O {[%clk 0:02:31]}  g6 {[%clk 0:02:43]} 11. Nc3 {[%clk 0:02:29]}  Nxc3 {[%clk 0:02:42]} 12. bxc3 {[%clk 0:02:30]}  Bg7 {[%clk 0:02:39]} 13. c4 {[%clk 0:02:27]}  O-O {[%clk 0:02:38]} 14. d5 {[%clk 0:02:27]}  cxd5 {[%clk 0:02:26]} 15. cxd5 {[%clk 0:02:28]}  d6 {[%clk 0:02:27]} 16. Bb2 {[%clk 0:02:29]}  Nc7 {[%clk 0:02:22]} 17. Rc1 {[%clk 0:02:07]}  Ra5 {[%clk 0:01:45]} 18. exd6 {[%clk 0:01:48]}  exd6 {[%clk 0:01:40]} 19. Bxg7 {[%clk 0:01:48]}  Kxg7 {[%clk 0:01:40]} 20. Qd4+ {[%clk 0:01:48]}  Kg8 {[%clk 0:01:41]} 21. Qxb6 {[%clk 0:01:48]}  Nxd5 {[%clk 0:01:40]} 22. Qd4 {[%clk 0:01:34]}  Qf6 {[%clk 0:01:34]} 23. Qd2 {[%clk 0:01:03]}  Nf4 {[%clk 0:01:30]} 24. Qxa5 {[%clk 0:01:00]}  Ne2+ {[%clk 0:01:24]} 25. Kh1 {[%clk 0:01:00]}  Nxc1 {[%clk 0:01:24]} 26. Rxc1 {[%clk 0:01:01]}  Re8 {[%clk 0:01:24]} 27. Qd2 {[%clk 0:00:56]}  Re4 {[%clk 0:01:20]} 28. h3 {[%clk 0:00:39]}  Kg7 {[%clk 0:01:12]} 29. Kg1 {[%clk 0:00:35]}  Ra4 {[%clk 0:01:09]} 30. Rd1 {[%clk 0:00:33]}  Ra6 {[%clk 0:01:06]} 31. Qd4 {[%clk 0:00:34]}  Qxd4 {[%clk 0:01:05]} 32. Rxd4 {[%clk 0:00:34]}  Rxa2 {[%clk 0:01:05]} 33. Rxd6 {[%clk 0:00:35]}  Ra1+ {[%clk 0:01:04]} 34. Kh2 {[%clk 0:00:35]}  Ra2 {[%clk 0:01:05]} 35. Kg3 {[%clk 0:00:36]}  Ra3 {[%clk 0:01:05]} 36. Rd7 {[%clk 0:00:34]}  Kf6 {[%clk 0:01:04]} 37. Rd2 {[%clk 0:00:34]}  Rb3 {[%clk 0:01:02]} 38. Kh2 {[%clk 0:00:34]}  Ra3 {[%clk 0:01:02]} 39. Nd4 {[%clk 0:00:33]}  Rc3 {[%clk 0:01:00]} 40. g3 {[%clk 0:00:33]}  Ra3 {[%clk 0:00:59]} 41. Kg2 {[%clk 0:00:33]}  Rc3 {[%clk 0:00:59]} 42. Nf3 {[%clk 0:00:32]}  Ra3 {[%clk 0:00:56]} 43. Rd6+ {[%clk 0:00:32]}  Ke7 {[%clk 0:00:55]} 44. Rb6 {[%clk 0:00:31]}  Ra5 {[%clk 0:00:53]} 45. h4 {[%clk 0:00:29]}  h5 {[%clk 0:00:51]} 46. Ng5 {[%clk 0:00:28]}  Ra7 {[%clk 0:00:48]} 47. Rb3 {[%clk 0:00:27]}  Kf8 {[%clk 0:00:44]} 48. Kf3 {[%clk 0:00:26]}  Kg7 {[%clk 0:00:43]} 49. Ne4 {[%clk 0:00:27]}  Rc7 {[%clk 0:00:40]} 50. Nd6 {[%clk 0:00:25]}  Rd7 {[%clk 0:00:40]} 51. Ne4 {[%clk 0:00:23]}  Rc7 {[%clk 0:00:39]} 52. Ke3 {[%clk 0:00:23]}  Re7 {[%clk 0:00:39]} 53. Kf4 {[%clk 0:00:22]}  Ra7 {[%clk 0:00:38]} 54. Nd6 {[%clk 0:00:19]}  Rd7 {[%clk 0:00:31]} 55. Ke5 {[%clk 0:00:18]}  Re7+ {[%clk 0:00:31]} 56. Kd5 {[%clk 0:00:19]}  Re2 {[%clk 0:00:31]} 57. f4 {[%clk 0:00:18]}  f5 {[%clk 0:00:20]} 58. Rb7+ {[%clk 0:00:16]}  Kg8 {[%clk 0:00:20]} 59. Nc4 {[%clk 0:00:15]}  Rg2 {[%clk 0:00:18]} 60. Rb3 {[%clk 0:00:16]}  Kg7 {[%clk 0:00:17]} 61. Ke6 {[%clk 0:00:16]}  Ra2 {[%clk 0:00:15]} 62. Rb7+ {[%clk 0:00:15]}  Kh6 {[%clk 0:00:15]} 63. Nd6 {[%clk 0:00:14]}  Ra3 {[%clk 0:00:14]} 64. Nf7+ {[%clk 0:00:12]}  Kg7 {[%clk 0:00:15]} 65. Ng5+ {[%clk 0:00:12]}  Kg8 {[%clk 0:00:15]} 66. Kf6 {[%clk 0:00:12]}  Ra6+ {[%clk 0:00:14]} 67. Ne6 {[%clk 0:00:13]}  Rc6 {[%clk 0:00:13]} 68. Rg7+ {[%clk 0:00:13]}  Kh8 {[%clk 0:00:12]} 69. Rxg6 {[%clk 0:00:13]} 1-0


[Site "https://www.chess.com"]

[Event "Titled Tuesday Blitz June 20 Early 2023"]
[White "Druska, Juraj"]
[Black "Pap, Gyula"]
[WhiteFideId "14915650"]
[BlackFideId "725323"]
[WhiteElo "2415"]
[BlackElo "2519"]
[Result "0-1"]
[Round "3"]
[TimeControl "180+2"]
[Date "2023.06.20"]
[WhiteClock "0:00:00"]
[BlackClock "0:00:33"]
[Board "33"]

1. c4 {[%clk 0:02:51]}  e6 {[%clk 0:02:59]} 2. g3 {[%clk 0:02:51]}  d5 {[%clk 0:02:59]} 3. Bg2 {[%clk 0:02:51]}  Nf6 {[%clk 0:02:53]} 4. Nf3 {[%clk 0:02:51]}  Be7 {[%clk 0:02:40]} 5. O-O {[%clk 0:02:51]}  O-O {[%clk 0:02:41]} 6. d4 {[%clk 0:02:50]}  Nbd7 {[%clk 0:02:41]} 7. Qc2 {[%clk 0:02:49]}  a5 {[%clk 0:02:39]} 8. Rd1 {[%clk 0:02:49]}  dxc4 {[%clk 0:02:37]} 9. Qxc4 {[%clk 0:02:45]}  b5 {[%clk 0:02:37]} 10. Qc2 {[%clk 0:02:19]}  Bb7 {[%clk 0:02:37]} 11. Nc3 {[%clk 0:02:20]}  b4 {[%clk 0:02:22]} 12. Na4 {[%clk 0:02:20]}  Qc8 {[%clk 0:02:22]} 13. Bg5 {[%clk 0:02:08]}  Be4 {[%clk 0:02:20]} 14. Qb3 {[%clk 0:01:55]}  Qb7 {[%clk 0:02:18]} 15. Rac1 {[%clk 0:01:54]}  Rfd8 {[%clk 0:01:52]} 16. Ne1 {[%clk 0:01:49]}  h6 {[%clk 0:01:44]} 17. Bxe4 {[%clk 0:01:40]}  Qxe4 {[%clk 0:01:43]} 18. Bxf6 {[%clk 0:01:39]}  Bxf6 {[%clk 0:01:44]} 19. Qf3 {[%clk 0:01:36]}  Qxf3 {[%clk 0:01:30]} 20. Nxf3 {[%clk 0:01:37]}  Nb6 {[%clk 0:01:28]} 21. Nxb6 {[%clk 0:00:53]}  cxb6 {[%clk 0:01:29]} 22. Rc6 {[%clk 0:00:53]}  Rab8 {[%clk 0:01:30]} 23. e3 {[%clk 0:00:50]}  Kf8 {[%clk 0:01:27]} 24. Nd2 {[%clk 0:00:46]}  e5 {[%clk 0:01:20]} 25. Ne4 {[%clk 0:00:45]}  exd4 {[%clk 0:01:21]} 26. Nxf6 {[%clk 0:00:45]}  dxe3 {[%clk 0:00:58]} 27. Rxd8+ {[%clk 0:00:18]}  Rxd8 {[%clk 0:00:57]} 28. fxe3 {[%clk 0:00:17]}  gxf6 {[%clk 0:00:57]} 29. b3 {[%clk 0:00:11]}  Kg7 {[%clk 0:00:39]} 30. Rxb6 {[%clk 0:00:05]}  Rd2 {[%clk 0:00:38]} 31. Ra6 {[%clk 0:00:02]}  Rxa2 {[%clk 0:00:38]} 32. e4 {[%clk 0:00:03]}  h5 {[%clk 0:00:37]} 33. Kh1 {[%clk 0:00:03]}  a4 {[%clk 0:00:32]} 34. bxa4 {[%clk 0:00:02]}  b3 {[%clk 0:00:32]} 35. Rb6 {[%clk 0:00:00]}  b2 {[%clk 0:00:33]} 0-1


[Site "https://www.chess.com"]

[Event "Titled Tuesday Blitz June 20 Early 2023"]
[White "Ashraf, Artin"]
[Black "Galchenko, Matvey"]
[WhiteFideId "22514805"]
[BlackFideId "24175480"]
[WhiteElo "2224"]
[BlackElo "2423"]
[Result "0-1"]
[Round "3"]
[TimeControl "180+2"]
[Date "2023.06.20"]
[WhiteClock "0:00:00"]
[BlackClock "0:01:01"]
[Board "34"]

1. c4 {[%clk 0:02:57]}  e6 {[%clk 0:02:58]} 2. Nf3 {[%clk 0:02:55]}  d5 {[%clk 0:02:58]} 3. e3 {[%clk 0:02:54]}  Nf6 {[%clk 0:02:54]} 4. Nc3 {[%clk 0:02:50]}  c5 {[%clk 0:02:50]} 5. d4 {[%clk 0:02:50]}  Nc6 {[%clk 0:02:49]} 6. a3 {[%clk 0:02:46]}  Be7 {[%clk 0:02:45]} 7. dxc5 {[%clk 0:02:45]}  Bxc5 {[%clk 0:02:45]} 8. b4 {[%clk 0:02:45]}  Be7 {[%clk 0:02:43]} 9. Bb2 {[%clk 0:02:45]}  O-O {[%clk 0:02:43]} 10. Qc2 {[%clk 0:02:44]}  dxc4 {[%clk 0:02:39]} 11. Bxc4 {[%clk 0:02:35]}  Qc7 {[%clk 0:02:36]} 12. Bd3 {[%clk 0:02:06]}  a6 {[%clk 0:02:29]} 13. Ne4 {[%clk 0:01:45]}  Nxe4 {[%clk 0:02:26]} 14. Bxe4 {[%clk 0:01:43]}  h6 {[%clk 0:02:27]} 15. O-O {[%clk 0:01:20]}  Bd7 {[%clk 0:02:13]} 16. Rac1 {[%clk 0:01:06]}  Rac8 {[%clk 0:02:13]} 17. Ne5 {[%clk 0:00:49]}  Bf6 {[%clk 0:01:54]} 18. Nxd7 {[%clk 0:00:31]}  Qxd7 {[%clk 0:01:55]} 19. Bxf6 {[%clk 0:00:30]}  gxf6 {[%clk 0:01:56]} 20. Rfd1 {[%clk 0:00:26]}  Qe7 {[%clk 0:01:55]} 21. Qc5 {[%clk 0:00:24]}  Qc7 {[%clk 0:01:38]} 22. g3 {[%clk 0:00:11]}  Rfd8 {[%clk 0:01:19]} 23. Rxd8+ {[%clk 0:00:08]}  Qxd8 {[%clk 0:01:20]} 24. Qh5 {[%clk 0:00:05]}  f5 {[%clk 0:01:09]} 25. Bxc6 {[%clk 0:00:03]}  Kg7 {[%clk 0:01:10]} 26. Qf3 {[%clk 0:00:01]}  Qd6 {[%clk 0:01:09]} 27. Rd1 {[%clk 0:00:01]}  Qxc6 {[%clk 0:01:08]} 28. Qf4 {[%clk 0:00:01]}  Qe4 {[%clk 0:01:01]} 29. Qxe4 {[%clk 0:00:01]}  fxe4 {[%clk 0:01:02]} 30. Rd7 {[%clk 0:00:02]}  Rc3 {[%clk 0:01:02]} 31. Rxb7 {[%clk 0:00:02]}  Rxa3 {[%clk 0:01:03]} 32. b5 {[%clk 0:00:02]}  axb5 {[%clk 0:01:03]} 33. Rxb5 {[%clk 0:00:03]}  f5 {[%clk 0:01:03]} 34. Kg2 {[%clk 0:00:04]}  Kf6 {[%clk 0:01:03]} 35. h3 {[%clk 0:00:04]}  Ra2 {[%clk 0:01:03]} 36. Rb8 {[%clk 0:00:04]}  Kg6 {[%clk 0:01:02]} 37. Re8 {[%clk 0:00:03]}  Kf7 {[%clk 0:01:01]} 38. Rg8 {[%clk 0:00:00]}  Kxg8 {[%clk 0:01:01]} 0-1


[Site "https://www.chess.com"]

[Event "Titled Tuesday Blitz June 20 Early 2023"]
[White "Becerra, Juan David"]
[Black "Bacrot, Etienne"]
[WhiteFideId "4404998"]
[BlackFideId "605506"]
[WhiteElo "2304"]
[BlackElo "2672"]
[Result "1/2-1/2"]
[Round "3"]
[TimeControl "180+2"]
[Date "2023.06.20"]
[WhiteClock "0:00:07"]
[BlackClock "0:00:13"]
[Board "38"]

1. e4 {[%clk 0:02:57]}  c5 {[%clk 0:02:59]} 2. d4 {[%clk 0:02:56]}  cxd4 {[%clk 0:02:59]} 3. c3 {[%clk 0:02:56]}  dxc3 {[%clk 0:02:58]} 4. Nxc3 {[%clk 0:02:57]}  Nc6 {[%clk 0:02:58]} 5. Nf3 {[%clk 0:02:57]}  e6 {[%clk 0:02:58]} 6. Bf4 {[%clk 0:02:57]}  Bb4 {[%clk 0:02:58]} 7. e5 {[%clk 0:02:57]}  Nge7 {[%clk 0:02:56]} 8. Bd3 {[%clk 0:02:58]}  Ng6 {[%clk 0:02:56]} 9. Bg3 {[%clk 0:02:58]}  Qa5 {[%clk 0:02:53]} 10. O-O {[%clk 0:02:50]}  Bxc3 {[%clk 0:02:50]} 11. bxc3 {[%clk 0:02:51]}  Ngxe5 {[%clk 0:02:43]} 12. Nxe5 {[%clk 0:02:33]}  Nxe5 {[%clk 0:02:43]} 13. Qh5 {[%clk 0:02:33]}  Nc6 {[%clk 0:02:29]} 14. Qg4 {[%clk 0:02:02]}  Qxc3 {[%clk 0:02:28]} 15. Rad1 {[%clk 0:01:46]}  h5 {[%clk 0:02:24]} 16. Qf3 {[%clk 0:01:17]}  Qf6 {[%clk 0:02:11]} 17. Qe3 {[%clk 0:01:12]}  d5 {[%clk 0:01:49]} 18. Bd6 {[%clk 0:00:52]}  Qd4 {[%clk 0:01:15]} 19. Qc1 {[%clk 0:00:30]}  Qa4 {[%clk 0:01:13]} 20. Qb2 {[%clk 0:00:26]}  Qd4 {[%clk 0:01:01]} 21. Qb1 {[%clk 0:00:17]}  Qb6 {[%clk 0:00:53]} 22. Qc1 {[%clk 0:00:17]}  Qd8 {[%clk 0:00:30]} 23. Ba3 {[%clk 0:00:15]}  Bd7 {[%clk 0:00:27]} 24. Rfe1 {[%clk 0:00:14]}  Qa5 {[%clk 0:00:22]} 25. Bd6 {[%clk 0:00:13]}  O-O-O {[%clk 0:00:21]} 26. Qg5 {[%clk 0:00:12]}  Qc3 {[%clk 0:00:15]} 27. Bb5 {[%clk 0:00:08]}  Be8 {[%clk 0:00:14]} 28. Rc1 {[%clk 0:00:06]}  Qf6 {[%clk 0:00:14]} 29. Qxf6 {[%clk 0:00:03]}  gxf6 {[%clk 0:00:14]} 30. Be7 {[%clk 0:00:04]}  Rd7 {[%clk 0:00:12]} 31. Bxf6 {[%clk 0:00:04]}  Rg8 {[%clk 0:00:12]} 32. a4 {[%clk 0:00:02]}  Rc7 {[%clk 0:00:12]} 33. Rcd1 {[%clk 0:00:01]}  Nb8 {[%clk 0:00:12]} 34. Be5 {[%clk 0:00:01]}  Rc2 {[%clk 0:00:11]} 35. Rc1 {[%clk 0:00:02]}  Rxc1 {[%clk 0:00:10]} 36. Rxc1+ {[%clk 0:00:03]}  Nc6 {[%clk 0:00:10]} 37. Bd4 {[%clk 0:00:03]}  a6 {[%clk 0:00:10]} 38. Bxc6 {[%clk 0:00:03]}  Bxc6 {[%clk 0:00:11]} 39. a5 {[%clk 0:00:04]}  Kd7 {[%clk 0:00:11]} 40. f4 {[%clk 0:00:04]}  Rg4 {[%clk 0:00:11]} 41. g3 {[%clk 0:00:04]}  h4 {[%clk 0:00:11]} 42. Kf2 {[%clk 0:00:05]}  hxg3+ {[%clk 0:00:12]} 43. hxg3 {[%clk 0:00:06]}  Rg8 {[%clk 0:00:12]} 44. Rh1 {[%clk 0:00:05]}  Bb5 {[%clk 0:00:12]} 45. Rh8 {[%clk 0:00:05]}  Rxh8 {[%clk 0:00:11]} 46. Bxh8 {[%clk 0:00:05]}  b6 {[%clk 0:00:11]} 47. axb6 {[%clk 0:00:05]}  Kc6 {[%clk 0:00:12]} 48. Bd4 {[%clk 0:00:05]}  a5 {[%clk 0:00:12]} 49. Ke3 {[%clk 0:00:05]}  a4 {[%clk 0:00:13]} 50. Kd2 {[%clk 0:00:06]}  a3 {[%clk 0:00:13]} 51. Kc3 {[%clk 0:00:05]}  a2 {[%clk 0:00:13]} 52. Kb2 {[%clk 0:00:05]}  Bc4 {[%clk 0:00:13]} 53. g4 {[%clk 0:00:06]}  f6 {[%clk 0:00:13]} 54. Bxf6 {[%clk 0:00:04]}  Kxb6 {[%clk 0:00:13]} 55. Bd4+ {[%clk 0:00:05]}  Kc7 {[%clk 0:00:13]} 56. g5 {[%clk 0:00:05]}  Kd7 {[%clk 0:00:13]} 57. g6 {[%clk 0:00:05]}  Ke7 {[%clk 0:00:14]} 58. g7 {[%clk 0:00:06]}  Kf7 {[%clk 0:00:15]} 59. Be5 {[%clk 0:00:06]}  Kg8 {[%clk 0:00:13]} 60. Bd4 {[%clk 0:00:06]}  Kh7 {[%clk 0:00:13]} 61. Be5 {[%clk 0:00:07]}  Kg8 {[%clk 0:00:12]} 62. Bd4 {[%clk 0:00:07]}  Kf7 {[%clk 0:00:13]} 63. Be5 {[%clk 0:00:07]}  Kg8 {[%clk 0:00:13]} 1/2-1/2


[Site "https://www.chess.com"]

[Event "Titled Tuesday Blitz June 20 Early 2023"]
[White "Zavgorodniy, Sergiy"]
[Black "Donchenko, Alexander"]
[WhiteFideId "14110148"]
[BlackFideId "24603295"]
[WhiteElo "2402"]
[BlackElo "2554"]
[Result "0-1"]
[Round "3"]
[TimeControl "180+2"]
[Date "2023.06.20"]
[WhiteClock "0:00:00"]
[BlackClock "0:00:49"]
[Board "39"]

1. d4 {[%clk 0:02:59]}  Nf6 {[%clk 0:02:59]} 2. c4 {[%clk 0:02:59]}  e6 {[%clk 0:03:00]} 3. Nf3 {[%clk 0:02:59]}  d5 {[%clk 0:02:59]} 4. e3 {[%clk 0:02:59]}  Be7 {[%clk 0:02:59]} 5. Nbd2 {[%clk 0:02:59]}  O-O {[%clk 0:02:59]} 6. Bd3 {[%clk 0:02:59]}  b6 {[%clk 0:03:00]} 7. O-O {[%clk 0:02:59]}  Bb7 {[%clk 0:03:00]} 8. Qe2 {[%clk 0:02:59]}  Nbd7 {[%clk 0:03:01]} 9. e4 {[%clk 0:02:59]}  dxe4 {[%clk 0:03:00]} 10. Nxe4 {[%clk 0:03:00]}  Nxe4 {[%clk 0:03:01]} 11. Bxe4 {[%clk 0:03:01]}  Bxe4 {[%clk 0:03:01]} 12. Qxe4 {[%clk 0:03:02]}  c5 {[%clk 0:02:59]} 13. Rd1 {[%clk 0:03:01]}  Qc8 {[%clk 0:02:48]} 14. d5 {[%clk 0:02:41]}  Nf6 {[%clk 0:02:47]} 15. Qe2 {[%clk 0:02:41]}  Rd8 {[%clk 0:02:47]} 16. Bg5 {[%clk 0:02:35]}  h6 {[%clk 0:02:47]} 17. Bh4 {[%clk 0:02:32]}  a6 {[%clk 0:02:09]} 18. dxe6 {[%clk 0:02:27]}  Qxe6 {[%clk 0:02:08]} 19. Qxe6 {[%clk 0:02:27]}  fxe6 {[%clk 0:02:09]} 20. a4 {[%clk 0:02:19]}  g5 {[%clk 0:01:41]} 21. Bg3 {[%clk 0:02:18]}  Ne4 {[%clk 0:01:41]} 22. Be5 {[%clk 0:02:14]}  Kf7 {[%clk 0:01:39]} 23. h3 {[%clk 0:02:08]}  Rxd1+ {[%clk 0:01:36]} 24. Rxd1 {[%clk 0:02:06]}  Rd8 {[%clk 0:01:37]} 25. Rxd8 {[%clk 0:01:55]}  Bxd8 {[%clk 0:01:38]} 26. Kf1 {[%clk 0:01:53]}  Bf6 {[%clk 0:01:37]} 27. Ke2 {[%clk 0:01:48]}  Ke7 {[%clk 0:01:37]} 28. Ke3 {[%clk 0:01:41]}  Bxe5 {[%clk 0:01:35]} 29. Nxe5 {[%clk 0:01:42]}  Nd6 {[%clk 0:01:35]} 30. b3 {[%clk 0:01:22]}  Nf5+ {[%clk 0:01:34]} 31. Kd3 {[%clk 0:01:18]}  a5 {[%clk 0:01:30]} 32. Nf3 {[%clk 0:01:11]}  Kf6 {[%clk 0:01:28]} 33. Ke4 {[%clk 0:01:06]}  Nd6+ {[%clk 0:01:28]} 34. Ke3 {[%clk 0:01:03]}  e5 {[%clk 0:01:28]} 35. Nd2 {[%clk 0:00:57]}  Nf5+ {[%clk 0:01:28]} 36. Ke4 {[%clk 0:00:46]}  Ke6 {[%clk 0:01:28]} 37. Nf3 {[%clk 0:00:41]}  Nd6+ {[%clk 0:01:28]} 38. Ke3 {[%clk 0:00:41]}  Nf5+ {[%clk 0:01:28]} 39. Ke4 {[%clk 0:00:41]}  Nd4 {[%clk 0:01:23]} 40. Nxe5 {[%clk 0:00:32]}  Nxb3 {[%clk 0:01:23]} 41. Nf3 {[%clk 0:00:25]}  Nc1 {[%clk 0:01:18]} 42. h4 {[%clk 0:00:22]}  gxh4 {[%clk 0:01:14]} 43. Nxh4 {[%clk 0:00:21]}  Ne2 {[%clk 0:01:14]} 44. Kd3 {[%clk 0:00:18]}  Nf4+ {[%clk 0:01:12]} 45. Ke4 {[%clk 0:00:18]}  Ne2 {[%clk 0:01:12]} 46. Kd3 {[%clk 0:00:18]}  Nd4 {[%clk 0:01:11]} 47. Ng6 {[%clk 0:00:09]}  Kd6 {[%clk 0:01:04]} 48. Nf4 {[%clk 0:00:08]}  Nc6 {[%clk 0:00:58]} 49. Nd5 {[%clk 0:00:07]}  Nb4+ {[%clk 0:00:58]} 50. Nxb4 {[%clk 0:00:06]}  cxb4 {[%clk 0:00:54]} 51. Kd4 {[%clk 0:00:05]}  h5 {[%clk 0:00:52]} 52. Ke4 {[%clk 0:00:05]}  Kc5 {[%clk 0:00:51]} 53. Kd3 {[%clk 0:00:05]}  h4 {[%clk 0:00:49]} 54. Kd2 {[%clk 0:00:00]}  Kxc4 {[%clk 0:00:49]} 0-1


[Site "https://www.chess.com"]

[Event "Titled Tuesday Blitz June 20 Early 2023"]
[White "Kravtsiv, Martyn"]
[Black "Demin, Vladimir"]
[WhiteFideId "14113147"]
[BlackFideId "4167457"]
[WhiteElo "2695"]
[BlackElo "2571"]
[Result "1-0"]
[Round "3"]
[TimeControl "180+2"]
[Date "2023.06.20"]
[WhiteClock "0:02:02"]
[BlackClock "0:00:39"]
[Board "42"]

1. e4 {[%clk 0:03:00]}  e5 {[%clk 0:02:59]} 2. Nf3 {[%clk 0:03:00]}  Nc6 {[%clk 0:02:58]} 3. Nc3 {[%clk 0:03:01]}  Nf6 {[%clk 0:02:58]} 4. a4 {[%clk 0:03:01]}  d5 {[%clk 0:02:47]} 5. exd5 {[%clk 0:03:02]}  Nxd5 {[%clk 0:02:48]} 6. Bb5 {[%clk 0:03:00]}  Nxc3 {[%clk 0:02:42]} 7. bxc3 {[%clk 0:03:01]}  Bd6 {[%clk 0:02:42]} 8. O-O {[%clk 0:03:02]}  O-O {[%clk 0:02:42]} 9. d4 {[%clk 0:03:02]}  exd4 {[%clk 0:02:39]} 10. cxd4 {[%clk 0:03:03]}  h6 {[%clk 0:02:33]} 11. c3 {[%clk 0:02:59]}  Qf6 {[%clk 0:02:28]} 12. a5 {[%clk 0:02:59]}  Ne7 {[%clk 0:02:21]} 13. Bd3 {[%clk 0:02:48]}  Rb8 {[%clk 0:02:08]} 14. Nd2 {[%clk 0:02:47]}  Bf5 {[%clk 0:02:06]} 15. Ne4 {[%clk 0:02:39]}  Bxe4 {[%clk 0:01:57]} 16. Bxe4 {[%clk 0:02:40]}  Bxh2+ {[%clk 0:01:54]} 17. Kxh2 {[%clk 0:02:40]}  Qh4+ {[%clk 0:01:53]} 18. Kg1 {[%clk 0:02:40]}  Qxe4 {[%clk 0:01:53]} 19. Re1 {[%clk 0:02:40]}  Qh4 {[%clk 0:01:47]} 20. Ba3 {[%clk 0:02:34]}  Rfe8 {[%clk 0:01:45]} 21. Qf3 {[%clk 0:02:21]}  b6 {[%clk 0:01:27]} 22. Re4 {[%clk 0:02:17]}  Qg5 {[%clk 0:01:27]} 23. Rae1 {[%clk 0:02:17]}  c5 {[%clk 0:01:20]} 24. dxc5 {[%clk 0:02:13]}  bxc5 {[%clk 0:01:20]} 25. Re5 {[%clk 0:02:13]}  Qh4 {[%clk 0:01:05]} 26. Bxc5 {[%clk 0:02:08]}  Rb5 {[%clk 0:00:44]} 27. Rxe7 {[%clk 0:02:03]}  Rxe7 {[%clk 0:00:39]} 28. Bxe7 {[%clk 0:02:02]} 1-0


[Site "https://www.chess.com"]

[Event "Titled Tuesday Blitz June 20 Early 2023"]
[White "Beerdsen, Thomas"]
[Black "Girya, Olga"]
[WhiteFideId "1030108"]
[BlackFideId "4195752"]
[WhiteElo "2553"]
[BlackElo "2263"]
[Result "1-0"]
[Round "3"]
[TimeControl "180+2"]
[Date "2023.06.20"]
[WhiteClock "0:01:00"]
[BlackClock "0:00:01"]
[Board "44"]

1. e4 {[%clk 0:03:00]}  e5 {[%clk 0:02:59]} 2. Bc4 {[%clk 0:03:00]}  Nf6 {[%clk 0:02:57]} 3. d3 {[%clk 0:03:00]}  Bc5 {[%clk 0:02:56]} 4. Nc3 {[%clk 0:02:59]}  c6 {[%clk 0:02:55]} 5. Nf3 {[%clk 0:02:59]}  d6 {[%clk 0:02:48]} 6. a4 {[%clk 0:02:57]}  a5 {[%clk 0:02:42]} 7. h3 {[%clk 0:02:54]}  Nbd7 {[%clk 0:02:34]} 8. Ba2 {[%clk 0:02:50]}  Nf8 {[%clk 0:02:30]} 9. d4 {[%clk 0:02:49]}  exd4 {[%clk 0:02:28]} 10. Nxd4 {[%clk 0:02:50]}  Ng6 {[%clk 0:02:24]} 11. O-O {[%clk 0:02:48]}  O-O {[%clk 0:02:24]} 12. Bg5 {[%clk 0:02:44]}  h6 {[%clk 0:02:22]} 13. Be3 {[%clk 0:02:45]}  Re8 {[%clk 0:02:18]} 14. Qf3 {[%clk 0:02:38]}  Qb6 {[%clk 0:01:59]} 15. Rad1 {[%clk 0:02:19]}  Qxb2 {[%clk 0:01:46]} 16. Bc1 {[%clk 0:02:10]}  Qb6 {[%clk 0:01:45]} 17. Nb3 {[%clk 0:02:02]}  Be6 {[%clk 0:00:58]} 18. Bxh6 {[%clk 0:01:54]}  Ne5 {[%clk 0:00:51]} 19. Qg3 {[%clk 0:01:51]}  Ng6 {[%clk 0:00:50]} 20. Bc1 {[%clk 0:01:34]}  Bb4 {[%clk 0:00:46]} 21. Bb2 {[%clk 0:01:29]}  Nh5 {[%clk 0:00:43]} 22. Qg5 {[%clk 0:01:24]}  Nhf4 {[%clk 0:00:43]} 23. Kh2 {[%clk 0:01:24]}  Qd8 {[%clk 0:00:29]} 24. Qg3 {[%clk 0:01:22]}  Qh4 {[%clk 0:00:27]} 25. Bb1 {[%clk 0:01:17]}  Qxg3+ {[%clk 0:00:23]} 26. fxg3 {[%clk 0:01:18]}  Nh5 {[%clk 0:00:20]} 27. Na2 {[%clk 0:01:18]}  Nf6 {[%clk 0:00:08]} 28. Bxf6 {[%clk 0:01:16]}  gxf6 {[%clk 0:00:09]} 29. Rxf6 {[%clk 0:01:12]}  Ba3 {[%clk 0:00:09]} 30. Nd4 {[%clk 0:01:09]}  Bc4 {[%clk 0:00:05]} 31. Nf5 {[%clk 0:01:05]}  Rxe4 {[%clk 0:00:04]} 32. Nxd6 {[%clk 0:00:59]}  Bxd6 {[%clk 0:00:04]} 33. Rfxd6 {[%clk 0:00:59]}  Re2 {[%clk 0:00:04]} 34. Nc3 {[%clk 0:00:59]}  Rf2 {[%clk 0:00:04]} 35. R1d4 {[%clk 0:00:59]}  Be6 {[%clk 0:00:03]} 36. Ne4 {[%clk 0:01:00]}  Bd5 {[%clk 0:00:01]} 37. Nxf2 {[%clk 0:01:00]} 1-0


[Site "https://www.chess.com"]

[Event "Titled Tuesday Blitz June 20 Early 2023"]
[White "Mikhailovsky, Vladimir"]
[Black "Garv Gaur"]
[WhiteFideId "34105414"]
[BlackFideId "45030839"]
[WhiteElo "2244"]
[BlackElo "2068"]
[Result "1-0"]
[Round "3"]
[TimeControl "180+2"]
[Date "2023.06.20"]
[WhiteClock "0:00:10"]
[BlackClock "0:00:05"]
[Board "45"]

1. e4 {[%clk 0:03:00]}  g6 {[%clk 0:02:58]} 2. d4 {[%clk 0:03:00]}  c6 {[%clk 0:02:58]} 3. Nf3 {[%clk 0:03:00]}  d5 {[%clk 0:02:57]} 4. e5 {[%clk 0:03:00]}  Bg7 {[%clk 0:02:56]} 5. Bd3 {[%clk 0:02:56]}  Bg4 {[%clk 0:02:56]} 6. Nbd2 {[%clk 0:02:56]}  c5 {[%clk 0:02:52]} 7. c3 {[%clk 0:02:50]}  Nc6 {[%clk 0:02:49]} 8. h3 {[%clk 0:02:50]}  Bxf3 {[%clk 0:02:44]} 9. Nxf3 {[%clk 0:02:51]}  e6 {[%clk 0:02:44]} 10. O-O {[%clk 0:02:50]}  Nge7 {[%clk 0:02:43]} 11. Bf4 {[%clk 0:02:50]}  Nf5 {[%clk 0:02:41]} 12. Bxf5 {[%clk 0:02:46]}  gxf5 {[%clk 0:02:40]} 13. dxc5 {[%clk 0:02:43]}  Qc7 {[%clk 0:02:37]} 14. Re1 {[%clk 0:02:42]}  Rg8 {[%clk 0:02:34]} 15. b4 {[%clk 0:02:39]}  O-O-O {[%clk 0:02:34]} 16. Nd4 {[%clk 0:02:35]}  Bxe5 {[%clk 0:02:03]} 17. Rxe5 {[%clk 0:01:34]}  Nxe5 {[%clk 0:02:04]} 18. Qe2 {[%clk 0:01:34]}  f6 {[%clk 0:01:58]} 19. Nxe6 {[%clk 0:01:34]}  Qe7 {[%clk 0:01:45]} 20. Nxd8 {[%clk 0:01:34]}  Rxd8 {[%clk 0:01:46]} 21. Rd1 {[%clk 0:01:18]}  Qg7 {[%clk 0:01:38]} 22. f3 {[%clk 0:00:49]}  Kb8 {[%clk 0:01:01]} 23. Re1 {[%clk 0:00:20]}  Re8 {[%clk 0:00:58]} 24. Qb5 {[%clk 0:00:19]}  Re7 {[%clk 0:00:38]} 25. c6 {[%clk 0:00:19]}  a6 {[%clk 0:00:19]} 26. Qxd5 {[%clk 0:00:13]}  bxc6 {[%clk 0:00:17]} 27. Qxc6 {[%clk 0:00:11]}  Rc7 {[%clk 0:00:17]} 28. Qb6+ {[%clk 0:00:10]}  Rb7 {[%clk 0:00:16]} 29. Qd6+ {[%clk 0:00:11]}  Rc7 {[%clk 0:00:16]} 30. Rxe5 {[%clk 0:00:10]}  fxe5 {[%clk 0:00:12]} 31. Bxe5 {[%clk 0:00:10]}  Qd7 {[%clk 0:00:05]} 32. Qxd7 {[%clk 0:00:10]} 1-0


[Site "https://www.chess.com"]